fUST/lending_fUST_20250915
["ID","MTS","AMOUNT","RATE_DAILY","PERIOD"]
[385590211,1757916633059,-500.0,0.0002452,2]
[385590212,1757916633068,-500.0,0.0002452,2]
[385590213,1757916633078,-500.0,0.0002452,2]
[385590214,1757916633087,-500.0,0.0002452,2]
[385590215,1757916633096,-500.0,0.0002452,2]
[385590216,1757916633105,-500.0,0.0002452,2]
[385590217,1757916633115,-500.0,0.0002452,2]
[385590218,1757916633124,-500.0,0.0002452,2]
[385590219,1757916633134,-500.0,0.0002452,2]
[385590220,1757916633143,-500.0,0.0002452,2]
[385590221,1757916633152,-500.0,0.0002452,2]
[385590222,1757916633162,-500.0,0.0002452,2]
[385590223,1757916633171,-500.0,0.0002452,2]
[385590224,1757916633180,-500.0,0.0002452,2]
[385590225,1757916633190,-500.0,0.0002452,2]
[385590226,1757916633200,-500.0,0.0002452,2]
[385590227,1757916633210,-500.0,0.0002452,2]
[385590228,1757916633219,-500.0,0.0002452,2]
[385590229,1757916633228,-500.0,0.0002452,2]
[385590230,1757916633238,-500.0,0.0002452,2]
[385590231,1757916633247,-500.0,0.0002452,2]
[385590232,1757916633256,-500.0,0.0002452,2]
[385590233,1757916633266,-500.0,0.0002452,2]
[385590234,1757916633275,-500.0,0.0002452,2]
[385590235,1757916633284,-500.0,0.0002452,2]
[385590236,1757916633294,-469.55597294,0.0002452,2]
[385590237,1757916633303,-500.0,0.0002452,2]
[385590238,1757916633312,-500.0,0.0002452,2]
[385590239,1757916633321,-500.0,0.0002452,2]
[385590240,1757916633331,-500.0,0.0002452,2]
[385590241,1757916633340,-500.0,0.0002452,2]
[385590242,1757916633350,-500.0,0.0002452,2]
[385590243,1757916633359,-500.0,0.0002452,2]
[385590244,1757916633368,-200.0,0.0002452,2]
[385590245,1757916633377,-1000.0,0.00024521,2]
[385590246,1757916633386,-160.0,0.00024528,2]
[385590247,1757916633396,-160.0,0.00024528,2]
[385590248,1757916633404,-160.0,0.00024528,2]
[385590249,1757916633414,-233.24851325,0.00024528,2]
[385590250,1757916633423,-160.0,0.00024528,2]
[385590251,1757916633432,-160.0,0.00024528,2]
[385590252,1757916633442,-285.61159847,0.00024562,2]
[385590253,1757916633451,-500.0,0.00024573,2]
[385590254,1757916633461,-508.34230985,0.00024573,2]
[385590255,1757916633470,-500.0,0.00024573,2]
[385590256,1757916633480,-500.0,0.00024573,2]
[385590257,1757916633490,-500.0,0.00024573,2]
[385590258,1757916633499,-500.0,0.00024573,2]
[385590259,1757916633508,-500.0,0.00024573,2]
[385590260,1757916633518,-502.59571462,0.00024573,2]
[385590261,1757916633528,-501.23347224,0.00024573,2]
[385590262,1757916633537,-504.40234918,0.00024573,2]
[385590263,1757916633547,-501.53364087,0.00024573,2]
[385590264,1757916633556,-503.69107948,0.00024573,2]
[385590265,1757916633566,-500.71360868,0.00024573,2]
[385590266,1757916633575,-503.56082164,0.00024573,2]
[385590267,1757916633584,-503.3497479,0.00024573,2]
[385590268,1757916633594,-500.0,0.00024573,2]
[385590269,1757916633604,-500.0,0.00024573,2]
[385590270,1757916633617,-491.77533654,0.00024657,3]
[385590271,1757916633626,-481.16,0.00024657,3]
[385590272,1757916633636,-514.62,0.00024657,3]
[385590273,1757916633646,-480.0,0.00024657,3]
[385590274,1757916633655,-480.0,0.00024657,3]
[385590275,1757916633664,-480.0,0.00024657,3]
[385590276,1757916633673,-262.53308378,0.00024657,3]
[385590277,1757916633683,-492.82434561,0.00024657,3]
[385590278,1757916633692,-480.0,0.00024657,3]
[385590279,1757916633702,-482.13578437,0.00024657,3]
[385590280,1757916633711,-482.15489694,0.00024657,3]
[385590281,1757916633720,-520.27748976,0.00024657,3]
[385590282,1757916633729,-482.34842483,0.00024657,3]
[385590283,1757916633738,-487.24308739,0.00024657,3]
[385590284,1757916633748,-483.85575965,0.00024657,3]
[385590285,1757916633757,-485.5551476,0.00024657,3]
[385590286,1757916633767,-482.74105424,0.00024657,3]
[385590287,1757916633777,-480.0,0.00024657,3]
[385590288,1757916633787,-483.9097568,0.00024657,3]
[385590289,1757916633796,-220.21823378,0.00024657,3]
[385590290,1757916633805,-484.01126567,0.00024657,3]
[385590291,1757916633814,-484.78635262,0.00024657,3]
[385590292,1757916633823,-484.07616976,0.00024657,3]
[385590293,1757916633833,-482.23823797,0.00024657,3]
[385590294,1757916633842,-480.0,0.00024657,3]
[385590295,1757916633851,-480.0,0.00024657,3]
[385590296,1757916633860,-483.74772485,0.00024657,3]
[385590297,1757916633870,-488.69315136,0.00024657,3]
[385590298,1757916633879,-480.0,0.00024657,3]
[385590299,1757916633889,-480.0,0.00024657,3]
[385590300,1757916633898,-480.0,0.00024657,3]
[385590301,1757916633907,-847.45018724,0.00024732,2]
[385590302,1757916633916,-189.52,0.00024767,2]
[385590303,1757916633925,-1522.95718281,0.00024782,2]
[385590304,1757916633934,-500.0,0.00024793,2]
[385590305,1757916633944,-1650.88629098,0.000248,2]
[385590306,1757916633953,-837.34,0.00024821,3]
[385590307,1757916633962,-490.18487589,0.00024826,3]
[385590308,1757916633971,-345.52691622,0.00024826,3]
[385590309,1757916633980,-483.91919711,0.00024826,3]
[385590310,1757916633990,-486.46,0.00024826,3]
[385590311,1757916633999,-486.80144916,0.00024826,3]
[385590312,1757916634008,-480.0,0.00024826,3]
[385590313,1757916634017,-480.0,0.00024826,3]
[385590314,1757916634026,-166.0,0.00024844,3]
[385590315,1757916634035,-166.0,0.00024844,3]
[385590316,1757916634044,-151.0,0.00024844,3]
[385590317,1757916634053,-151.0,0.00024844,3]
[385590318,1757916634063,-151.0,0.00024844,3]
[385590319,1757916634072,-500.0,0.00024859,2]
[385590320,1757916634081,-485.53588555,0.0002486,3]
[385590321,1757916634090,-482.84179252,0.0002486,3]
[385590322,1757916634100,-482.44033696,0.0002486,3]
[385590323,1757916634109,-481.42674829,0.0002486,3]
[385590324,1757916634118,-480.0,0.0002486,3]
[385590325,1757916634127,-483.64831613,0.0002486,3]
[385590326,1757916634136,-160.0,0.00024862,2]
[385590327,1757916634145,-488.42477872,0.00024868,3]
[385590328,1757916634154,-487.51320449,0.00024868,3]
[385590329,1757916634163,-490.16321838,0.00024868,3]
[385590330,1757916634172,-480.0,0.00024868,3]
[385590331,1757916634181,-481.13923531,0.00024873,2]
[385590332,1757916634191,-500.0,0.00024873,2]
[385590333,1757916634200,-508.12903647,0.00024873,2]
[385590334,1757916634209,-500.0,0.00024873,2]
[385590335,1757916634218,-505.94798253,0.00024873,2]
[385590336,1757916634228,-500.0,0.00024873,2]
[385590337,1757916634237,-500.0,0.00024873,2]
[385590338,1757916634249,-500.0,0.00024873,2]
[385590339,1757916634259,-500.0,0.00024873,2]
[385590340,1757916634268,-500.0,0.00024873,2]
[385590341,1757916634277,-500.0,0.00024873,2]
[385590342,1757916634287,-108292.01600363,0.000249,2]
[385590343,1757916638087,-1941.93400815,0.0002465,2]
[385590344,1757916638096,-239.53154306,0.00024899,2]
[385590345,1757916638106,-183.79168686,0.00024899,2]
[385590346,1757916638115,-757.85354301,0.000249,2]
[385590347,1757916638126,-12438.33355697,0.000249,2]
[385590348,1757916638137,-885.96677516,0.000249,2]
[385590349,1757916638148,-3157.4254304,0.000249,2]
[385590350,1757916638208,-6651.39028451,0.000249,2]
[385590351,1757916638224,-7862.82614194,0.000249,2]
[385590352,1757916638270,-161348.79881009,0.000249,2]
[385590353,1757916638281,-32361.07017864,0.000249,2]
[385590354,1757916638325,-3430.85880594,0.000249,2]
[385590399,1757916646466,-538.24602336,0.00024657,3]
[385590400,1757916646476,-480.0,0.00024657,3]
[385590401,1757916646485,-1421.25397664,0.000249,2]
[385590402,1757916646522,-2120.14752848,0.000249,2]
[385590403,1757916646581,-256889.89121859,0.000249,2]
[385590404,1757916646590,-151.0,0.000249,7]
[385590405,1757916646600,-152.194722,0.000249,7]
[385590406,1757916646613,-151.0,0.000249,7]
[385590407,1757916646622,-151.0,0.000249,7]
[385590408,1757916646632,-151.0,0.000249,7]
[385590409,1757916646642,-151.0,0.000249,7]
[385590410,1757916646651,-248.917552,0.000249,7]
[385590411,1757916646660,-154.678902,0.000249,7]
[385590412,1757916646670,-153.914471,0.000249,7]
[385590413,1757916646679,-151.0,0.000249,7]
[385590414,1757916646690,-154.626541,0.000249,7]
[385590416,1757916646699,-151.389783,0.000249,7]
[385590418,1757916646708,-152.45144,0.000249,7]
[385590420,1757916646717,-151.0,0.000249,7]
[385590422,1757916646726,-160.0,0.00024916,2]
[385590423,1757916646735,-480.0,0.00024931,3]
[385590424,1757916646746,-480.0,0.00024931,3]
[385590425,1757916646755,-274.17,0.00024931,3]
[385590426,1757916646764,-480.0,0.00024931,3]
[385590427,1757916646774,-480.0,0.00024931,3]
[385590428,1757916646783,-468.48,0.00025,7]
[385590429,1757916646792,-2993.66281309,0.00025,2]
[385590430,1757916646801,-417.15472785,0.00025,10]
[385590431,1757916646810,-514.57781482,0.00025068,2]
[385590432,1757916646819,-1010.61830943,0.00025121,2]
[385590433,1757916646828,-1000.0,0.00025121,2]
[385590434,1757916646837,-1000.0,0.00025121,2]
[385590435,1757916646846,-1000.0,0.00025121,2]
[385590436,1757916646945,-1008.73039574,0.00025121,2]
[385590437,1757916646969,-1000.0,0.00025121,2]
[385590438,1757916646979,-480.0,0.00025205,3]
[385590439,1757916646989,-381.53,0.00025205,3]
[385590440,1757916646998,-480.0,0.00025205,3]
[385590441,1757916647008,-480.0,0.00025205,3]
[385590442,1757916647017,-585.72532155,0.00025268,2]
[385590443,1757916647026,-300.0,0.00025365,20]
[385590444,1757916647035,-300.0,0.00025365,20]
[385590445,1757916647043,-300.0,0.00025365,20]
[385590446,1757916647052,-300.0,0.00025365,20]
[385590447,1757916647061,-300.0,0.00025365,20]
[385590448,1757916647069,-300.0,0.00025365,20]
[385590449,1757916647078,-300.0,0.00025365,20]
[385590450,1757916647087,-300.0,0.00025365,20]
[385590451,1757916647096,-300.0,0.00025365,20]
[385590452,1757916647105,-300.0,0.00025365,20]
[385590453,1757916647114,-300.0,0.00025365,20]
[385590454,1757916647123,-300.0,0.00025365,20]
[385590455,1757916647133,-300.0,0.00025365,20]
[385590456,1757916647141,-300.0,0.00025365,20]
[385590457,1757916647150,-300.0,0.00025365,20]
[385590458,1757916647159,-600.0,0.00025365,20]
[385590459,1757916647168,-1000.0,0.00025421,2]
[385590460,1757916647177,-501.12335706,0.00025421,2]
[385590461,1757916647185,-1000.0,0.00025421,2]
[385590462,1757916647194,-1000.0,0.00025421,2]
[385590463,1757916647203,-1000.0,0.00025421,2]
[385590464,1757916647212,-181.21081558,0.00025421,2]
[385590465,1757916647221,-1000.0,0.00025421,2]
[385590466,1757916647230,-260.0,0.00025464,2]
[385590467,1757916647239,-480.0,0.00025479,3]
[385590468,1757916647248,-364.41,0.00025479,3]
[385590469,1757916647258,-480.0,0.00025479,3]
[385590470,1757916647267,-199205.944085,0.00025507,2]
[385590471,1757916647277,-155.163426,0.00025507,7]
[385590472,1757916647286,-151.0,0.00025507,7]
[385590473,1757916647295,-167.923282,0.00025507,7]
[385590474,1757916647305,-151.0,0.00025507,7]
[385590475,1757916647315,-180.993895,0.00025507,7]
[385590476,1757916647324,-153.142925,0.00025507,7]
[385590477,1757916647334,-152.545655,0.00025507,7]
[385590478,1757916647344,-185.052566,0.00025507,7]
[385590479,1757916647354,-168.0,0.00025507,2]
[385590480,1757916647363,-153.592182,0.00025527,7]
[385590481,1757916647372,-152.337344,0.00025527,7]
[385590482,1757916647382,-163.218951,0.00025527,7]
[385590483,1757916647393,-154.545213,0.00025527,7]
[385590484,1757916647402,-153.235514,0.00025527,7]
[385590485,1757916647411,-154.250682,0.00025527,7]
[385590486,1757916647421,-500.0,0.00025573,2]
[385590487,1757916647431,-500.0,0.00025573,2]
[385590488,1757916647441,-500.39733948,0.00025573,2]
[385590489,1757916647451,-160.76537437,0.00025573,2]
[385590490,1757916647461,-150.0,0.00025573,2]
[385590491,1757916647471,-503.86427985,0.00025668,2]
[385590492,1757916647480,-1500.0,0.00025668,2]
[385590493,1757916647489,-1500.0,0.00025668,2]
[385590494,1757916647499,-710.02489415,0.00025668,2]
[385590495,1757916647508,-1522.95718281,0.00025676,2]
[385590496,1757916647518,-480.0,0.00025753,3]
[385590497,1757916647529,-480.0,0.00025753,3]
[385590498,1757916647539,-169.0,0.00025781,18]
[385590499,1757916647548,-154.1822045,0.0002584,2]
[385590500,1757916647558,-207.61662988,0.00025937,4]
[385590501,1757916647566,-368.1945531,0.00025968,2]
[385590502,1757916647576,-1500.0,0.00025968,2]
[385590503,1757916647591,-209.05238701,0.00025968,2]
[385590504,1757916647600,-1500.0,0.00025968,2]
[385590505,1757916647614,-1500.0,0.00025968,2]
[385590506,1757916647623,-420.0,0.00025997,2]
[385590507,1757916647632,-420.0,0.00025997,2]
[385590508,1757916647642,-420.0,0.00025997,2]
[385590509,1757916647653,-360.0,0.00026012,2]
[385590510,1757916647662,-1680.0,0.00026013,2]
[385590511,1757916647673,-480.0,0.00026027,3]
[385590512,1757916647684,-480.0,0.00026027,3]
[385590513,1757916647693,-1680.0,0.00026037,2]
[385590514,1757916647702,-382.20711383,0.00026121,2]
[385590515,1757916647711,-250.0,0.00026121,2]
[385590516,1757916647720,-168.0,0.00026133,2]
[385590517,1757916647729,-151.0,0.000262,19]
[385590518,1757916647739,-1179.2507149,0.00026216,2]
[385590519,1757916647749,-2000.0,0.00026216,2]
[385590520,1757916647758,-158.56763096,0.00026283,2]
[385590521,1757916647767,-151.0,0.000263,14]
[385590522,1757916647776,-480.0,0.00026301,3]
[385590523,1757916647786,-150.0,0.00026307,2]
[385590524,1757916647795,-2000.0,0.000264,2]
[385590525,1757916647806,-968.74728147,0.00026436,2]
[385590526,1757916647815,-151.0,0.00026469,7]
[385590527,1757916647824,-153.257167,0.00026469,7]
[385590528,1757916647834,-153.485707,0.00026469,7]
[385590529,1757916647845,-165.746501,0.00026469,7]
[385590530,1757916647854,-154.179983,0.00026469,7]
[385590531,1757916647867,-153.40183,0.00026469,7]
[385590532,1757916647877,-151.0,0.00026469,7]
[385590533,1757916647886,-151.0,0.00026469,7]
[385590534,1757916647895,-162.342474,0.00026469,7]
[385590535,1757916647904,-157.776083,0.00026469,7]
[385590536,1757916647913,-152.093225,0.00026469,7]
[385590537,1757916647922,-151.0,0.00026469,7]
[385590538,1757916647931,-155.32527,0.00026469,7]
[385590539,1757916647940,-151.0,0.00026469,7]
[385590540,1757916647949,-151.0,0.00026469,7]
[385590541,1757916647958,-162.870065,0.00026469,7]
[385590542,1757916647967,-162.870065,0.00026469,7]
[385590543,1757916647975,-151.0,0.00026469,7]
[385590544,1757916647985,-162.870065,0.00026469,7]
[385590545,1757916647995,-152.860732,0.00026469,7]
[385590546,1757916648004,-162.870065,0.00026469,7]
[385590547,1757916648014,-152.022354,0.00026469,7]
[385590548,1757916648023,-151.0,0.00026469,7]
[385590549,1757916648033,-151.0,0.00026469,7]
[385590550,1757916648045,-151.0,0.00026469,7]
[385590551,1757916648054,-151.0,0.00026469,7]
[385590552,1757916648063,-151.0,0.00026469,7]
[385590553,1757916648072,-160.384065,0.00026469,7]
[385590554,1757916648082,-150.0,0.00026473,2]
[385590555,1757916648091,-157.54490115,0.00026473,2]
[385590556,1757916648100,-153.453082,0.00026479,7]
[385590557,1757916648109,-151.0,0.0002648,2]
[385590558,1757916648118,-157.0,0.0002648,2]
[385590559,1757916648127,-151.0,0.0002648,2]
[385590560,1757916648136,-151.0,0.0002648,2]
[385590561,1757916648146,-157.0,0.0002648,2]
[385590562,1757916648155,-500.0,0.0002648,2]
[385590563,1757916648165,-158.41406284,0.0002648,2]
[385590564,1757916648174,-151.0,0.0002648,2]
[385590565,1757916648183,-500.0,0.0002648,2]
[385590566,1757916648192,-500.0,0.0002648,2]
[385590567,1757916648201,-151.0,0.0002648,2]
[385590568,1757916648211,-500.0,0.0002648,2]
[385590569,1757916648220,-157.78778016,0.0002648,10]
[385590570,1757916648229,-500.0,0.0002648,2]
[385590571,1757916648238,-151.0,0.0002648,10]
[385590572,1757916648248,-151.0,0.0002648,10]
[385590573,1757916648257,-164.26819515,0.0002648,10]
[385590574,1757916648266,-160.0,0.00026489,3]
[385590575,1757916648276,-500.0,0.0002649,10]
[385590576,1757916648285,-348.81339786,0.0002649,3]
[385590577,1757916648294,-1000.0,0.0002649,2]
[385590578,1757916648302,-1000.0,0.0002649,2]
[385590579,1757916648311,-1000.0,0.0002649,2]
[385590580,1757916648321,-1000.0,0.0002649,2]
[385590581,1757916648330,-1000.0,0.0002649,2]
[385590582,1757916648339,-1000.0,0.0002649,2]
[385590583,1757916648349,-1000.0,0.0002649,2]
[385590584,1757916648358,-1000.0,0.0002649,2]
[385590585,1757916648367,-1000.0,0.0002649,2]
[385590586,1757916648376,-1000.0,0.0002649,2]
[385590587,1757916648385,-1000.0,0.0002649,2]
[385590588,1757916648394,-1000.0,0.0002649,2]
[385590589,1757916648404,-1144.90164064,0.0002649,2]
[385590590,1757916648414,-154.72273602,0.0002649,2]
[385590591,1757916648423,-82659.61062468,0.000265,14]
[385590594,1757916716592,383.99406817,0.000199,2]
[385590595,1757916716681,383.99406788,0.00021149,2]
[385590596,1757916775268,194.0,0.00017671,3]
[385590606,1757916905050,460.75957181,0.000199,2]
[385590607,1757917088909,160.0,0.00017808,3]
[385590608,1757917091494,445.4009196,0.000199,2]
[385590611,1757917280930,430.55422228,0.000199,2]
[385590612,1757917403039,170.0,0.00017918,3]
[385590613,1757917466780,416.20241489,0.000199,2]
[385590614,1757917503652,229.59853647,0.0002015,2]
[385590620,1757917626119,-5000.0,0.00020522,2]
[385590621,1757917626644,-502.97604158,0.000206,2]
[385590622,1757917626670,-416.20241461,0.00021149,2]
[385590623,1757917626691,-201.87124406,0.00021509,2]
[385590624,1757917626716,-416.20241461,0.00022398,2]
[385590625,1757917626737,-191.791733,0.00022402,2]
[385590626,1757917626758,-1000.0,0.00022497,2]
[385590627,1757917626779,-249.0093432,0.00022762,2]
[385590628,1757917626800,-1200.0,0.00022926,2]
[385590629,1757917626820,-1058.2177862,0.00022927,2]
[385590630,1757917626842,-300.0,0.00023066,2]
[385590631,1757917626863,-189.94881306,0.00023067,2]
[385590632,1757917644095,-300.0,0.00023066,2]
[385590633,1757917644115,-267.42024824,0.00023066,2]
[385590634,1757917652340,374.58217341,0.000199,2]
[385590635,1757917674304,284.0,0.00027397,120]
[385590639,1757917716885,155.0,0.00018055,3]
[385590640,1757917757078,-273.31239404,0.00021149,2]
[385590641,1757917769113,-101.2697791,0.00021149,2]
[385590667,1757917833458,349.61002838,0.000199,2]
[385590668,1757917833547,349.61002826,0.00021149,2]
[385590669,1757917837308,-349.61002826,0.00022398,2]
[385590670,1757917837318,-322.3587329,0.00022835,2]
[385590706,1757917838500,-1971.70142234,0.00022835,2]
[385590709,1757917838512,-1041.5700025,0.00022835,2]
[385590716,1757917838579,-357.39757858,0.00022835,2]
[385590736,1757917840486,-1306.97226368,0.00022835,2]
[385590737,1757917840496,-932.57975176,0.00023066,2]
[385590738,1757917840506,-300.0,0.00023066,2]
[385590739,1757917840515,-514.0,0.00023066,2]
[385590740,1757917840524,-300.0,0.00023066,2]
[385590741,1757917840534,-300.0,0.00023066,2]
[385590742,1757917840543,-300.0,0.00023066,2]
[385590743,1757917840552,-6162.39990356,0.00023067,2]
[385590769,1757917843714,-42343.18062886,0.00023067,2]
[385590770,1757917843724,-160.0,0.00023067,2]
[385590771,1757917843734,-160.0,0.00023067,2]
[385590772,1757917843743,-217.82061966,0.00023067,2]
[385590773,1757917843752,-160.0,0.00023067,2]
[385590774,1757917843762,-160.0,0.00023067,2]
[385590775,1757917843771,-349.61002826,0.00023647,2]
[385590777,1757917843780,-457.84320298,0.00024,2]
[385590779,1757917843790,-500.0,0.00024656,2]
[385590780,1757917843799,-242.53373413,0.00024656,2]
[385590781,1757917843809,-162.84952223,0.00024656,2]
[385590782,1757917843819,-500.0,0.00024656,2]
[385590783,1757917843829,-500.0,0.00024656,2]
[385590784,1757917843839,-190.95781044,0.00024656,2]
[385590785,1757917843849,-500.0,0.00024656,2]
[385590786,1757917843859,-500.0,0.00024656,2]
[385590787,1757917843868,-186.19045733,0.00024656,2]
[385590788,1757917843877,-500.0,0.00024656,2]
[385590789,1757917843887,-351.05790266,0.00024656,2]
[385590790,1757917843899,-500.0,0.00024656,2]
[385590791,1757917843908,-500.0,0.00024656,2]
[385590792,1757917843918,-165.80175024,0.00024656,2]
[385590793,1757917843927,-266.95559729,0.00024656,2]
[385590794,1757917843937,-500.0,0.00024656,2]
[385590795,1757917843946,-480.0,0.00024657,3]
[385590796,1757917843956,-351.681698,0.00024657,3]
[385590797,1757917843965,-480.0,0.00024657,3]
[385590798,1757917843974,-486.25168544,0.00024657,3]
[385590799,1757917843984,-500.0,0.00024657,3]
[385590800,1757917843993,-500.0,0.00024657,3]
[385590801,1757917844002,-160.30443001,0.00024657,3]
[385590802,1757917844011,-480.0,0.00024657,3]
[385590803,1757917844021,-480.0,0.00024657,3]
[385590804,1757917844030,-581.65123464,0.00024657,3]
[385590805,1757917844039,-480.0,0.00024657,3]
[385590806,1757917844049,-480.0,0.00024657,3]
[385590807,1757917844058,-415.11056541,0.00024657,3]
[385590808,1757917844067,-488.30613404,0.00024657,3]
[385590809,1757917844077,-483.51737107,0.00024657,3]
[385590810,1757917844087,-480.0,0.00024657,3]
[385590811,1757917844097,-490.25080128,0.00024657,3]
[385590812,1757917844106,-480.0,0.00024657,3]
[385590813,1757917844115,-480.0,0.00024657,3]
[385590815,1757917844124,-480.0,0.00024657,3]
[385590816,1757917844134,-480.0,0.00024657,3]
[385590817,1757917844143,-480.0,0.00024657,3]
[385590818,1757917844153,-480.0,0.00024657,3]
[385590819,1757917844162,-477.72819492,0.00024657,3]
[385590820,1757917844171,-480.0,0.00024657,3]
[385590821,1757917844181,-489.83697105,0.00024657,3]
[385590822,1757917844191,-480.0,0.00024657,3]
[385590823,1757917844201,-480.0,0.00024657,3]
[385590824,1757917844211,-480.0,0.00024657,3]
[385590826,1757917844220,-527.66618676,0.00024657,3]
[385590827,1757917844232,-480.0,0.00024657,3]
[385590828,1757917844241,-488.47667226,0.00024657,3]
[385590829,1757917844250,-592.44139749,0.00024657,3]
[385590831,1757917844259,-492.94734075,0.00024657,3]
[385590833,1757917844269,-480.0,0.00024657,3]
[385590835,1757917844278,-480.0,0.00024657,3]
[385590837,1757917844288,-486.37764132,0.00024657,3]
[385590839,1757917844297,-537.44579149,0.00024657,3]
[385590841,1757917844309,-480.0,0.00024657,3]
[385590842,1757917844319,-480.0,0.00024657,3]
[385590843,1757917844328,-480.0,0.00024657,3]
[385590844,1757917844337,-485.53160332,0.00024657,3]
[385590845,1757917844346,-480.0,0.00024657,3]
[385590846,1757917844355,-480.0,0.00024657,3]
[385590847,1757917844366,-557.1,0.00024657,3]
[385590848,1757917844376,-480.0,0.00024657,3]
[385590849,1757917844385,-490.26370235,0.00024657,3]
[385590850,1757917844395,-483.06751349,0.00024657,3]
[385590851,1757917844404,-617.16,0.00024657,3]
[385590852,1757917844414,-682.23,0.00024657,3]
[385590853,1757917844423,-524.45,0.00024657,3]
[385590854,1757917844432,-486.31542985,0.00024657,3]
[385590855,1757917844442,-487.24382758,0.00024657,3]
[385590856,1757917844451,-480.0,0.00024657,3]
[385590857,1757917844460,-480.0,0.00024657,3]
[385590858,1757917844470,-480.0,0.00024657,3]
[385590859,1757917844479,-480.0,0.00024657,3]
[385590860,1757917844488,-217.82061966,0.00024657,3]
[385590861,1757917844585,-480.0,0.00024657,3]
[385590862,1757917844618,-480.0,0.00024657,3]
[385590863,1757917844628,-480.0,0.00024657,3]
[385590864,1757917844638,-2291.53,0.00024657,3]
[385590865,1757917844647,-2291.53,0.00024657,3]
[385590866,1757917844657,-2291.53,0.00024657,3]
[385590867,1757917844666,-2291.53,0.00024657,3]
[385590868,1757917844676,-480.0,0.00024657,3]
[385590869,1757917844686,-2291.53,0.00024819,3]
[385590870,1757917844696,-1100.59086064,0.0002482,2]
[385590871,1757917844706,-349.61002826,0.00024896,2]
[385590872,1757917844716,-2291.53,0.00024898,3]
[385590873,1757917844725,-2291.53,0.00024898,3]
[385590874,1757917844735,-167.67208014,0.00024899,2]
[385590875,1757917844744,-2291.53,0.00024899,3]
[385590876,1757917844754,-2291.53,0.00024899,3]
[385590877,1757917844763,-2291.53,0.00024899,3]
[385590878,1757917844773,-2291.53,0.00024899,3]
[385590879,1757917844782,-2291.53,0.00024899,3]
[385590880,1757917844792,-2291.53,0.00024899,3]
[385590881,1757917844803,-2291.53,0.00024899,3]
[385590882,1757917844812,-2291.53,0.00024899,3]
[385590883,1757917844821,-159870.552864,0.000249,2]
[385590884,1757917844830,-40287.5991125,0.0002491,2]
[385590914,1757917846474,-484.38,0.00024657,3]
[385590915,1757917846483,-15.62,0.0002491,2]
[385590916,1757917846554,-886.95460717,0.0002491,2]
[385590917,1757917846635,-8194.83906249,0.0002491,2]
[385590924,1757918030980,291.34169041,0.000199,2]
[385590925,1757918159273,919.66,0.0002739,120]
[385590926,1757918192865,180.0,0.0002015,2]
[385590927,1757918198231,400.0,0.0002739,120]
[385590928,1757918218686,281.63030072,0.000199,2]
[385590930,1757918409018,272.24262401,0.000199,2]
[385590931,1757918419959,1000.0,0.00027,120]
[385590932,1757918598614,263.16786977,0.000199,2]
[385590933,1757918784946,254.39679101,0.000199,2]
[385590934,1757918832174,-480.60534909,0.00020522,2]
[385590935,1757918840199,2995.72804003,0.0002015,2]
[385590936,1757918840222,2004.27195997,0.0002015,2]
[385590937,1757918849086,-176.73186717,0.00021049,2]